Workbook

Sheet 1.KITCHEN BOQ
A1: ITEM CODE | B1: ITEM NO | C1: DESCRIPTION | D1: 36 MONTH QTY | E1: UOM | F1: RATE EXCL VAT | G1: AMOUNT EXCL VAT | H1: VAT AMOUNT | I1: TOTAL AMOUNT INCL VAT
C3: KITCHEN
C4: GROCERIES
C5: BILL NO.1
C7: THE FOLLOWING SUPPLY AND DELIVERY OF DRY GOODS
C9: Beans
A10: 0688672 | B10: 1 | C10: 3.06kg Baked Koo or equivalent | D10: 1584 | E10: tin | G10: =ROUND(D10*F10,2) -> 0 | H10: =ROUND(G10*0.15,2) -> 0 | I10: =ROUND(G10+H10,2) -> 0
A11: 0567448 | B11: =B10+1 -> 2 | C11: 3.06kg Baked Goldcrest or equivalent | D11: 1584 | E11: tin | G11: =ROUND(D11*F11,2) -> 0 | H11: 0 | I11: 0
A12: 0672256 | B12: 3 | C12: 5kg oval butter dry beans | D12: 6 | E12: bag | G12: =ROUND(D12*F12,2) -> 0 | H12: 0 | I12: 0
A13: 0576492 | B13: 4 | C13: A10 Butter in brine koo or equivalent | D13: 634 | E13: tin | G13: 0 | H13: 0 | I13: 0
A14: 0576528 | B14: 5 | C14: A10 Red kidney goldcrest or equivalent | D14: 634 | E14: tin | G14: 0 | H14: 0 | I14: 0
A15: 0672258 | B15: 6 | C15: 5kg Red speckled sugar | D15: 119 | E15: bag | G15: 0 | H15: 0 | I15: 0
A16: 0746538 | B16: 7 | C16: 5kg Black eyed grade A | D16: 6 | E16: each | G16: 0 | H16: 0 | I16: 0
A17: 0746537 | B17: 8 | C17: 5kg Cannellini grade A | D17: 6 | E17: each | G17: 0 | H17: 0 | I17: 0
A18: 0747773 | B18: 9 | C18: 410g Black koo or equivalent | D18: 6 | E18: each | G18: 0 | H18: 0 | I18: 0
A19: 0747111 | B19: 10 | C19: 5kg Dry chickpea | D19: 5 | E19: each | G19: 0 | H19: 0 | I19: 0
A20: 0672122 | B20: 11 | C20: 410g Goldcrest or equivalent chickpea in brine | D20: 950 | E20: each | G20: 0 | H20: 0 | I20: 0
A21: 0747812 | B21: 12 | C21: 1kg dried brown legumes lentil | D21: 10 | E21: each | G21: 0 | H21: 0 | I21: 0
A22: 0747817 | B22: 13 | C22: 1kg dried whole green peas | D22: 10 | E22: each | G22: 0 | H22: 0 | I22: 0
A23: 0745413 | B23: 14 | C23: 1kg dried whole reddish peas | D23: 10 | E23: each | G23: 0 | H23: 0 | I23: 0
A24: 0747818 | B24: 15 | C24: 1kg dried split pink lintel | D24: 10 | E24: each | G24: 0 | H24: 0 | I24: 0
A25: 0745412 | B25: 16 | C25: 1kg dried whole yellow peas | D25: 10 | E25: each | G25: 0 | H25: 0 | I25: 0
A26: 0672254 | B26: 17 | C26: 410g black round lentil in brine | D26: 396 | E26: each | G26: 0 | H26: 0 | I26: 0
C28: Bread/ Rolls
A29: 0587007 | B29: =B26+1 -> 18 | C29: 700g sliced brown bread(Bag Plastic) | D29: 19800 | E29: loaf | G29: =ROUND(D29*F29,2) -> 0 | H29: Zero Rated | I29: =G29 -> 0
A30: 0769505 | B30: =B29+1 -> 19 | C30: 700g unsliced brown bread | D30: 600 | E30: loaf | G30: 0 | H30: Zero Rated | I30: =G30 -> 0
A31: 0183483 | B31: 20 | C31: 700g sliced white bread (Bag Plastic) | D31: 19800 | E31: loaf | G31: 0 | H31: =ROUND(G31*0.15,2) -> 0 | I31: =ROUND(G31+H31,2) -> 0
A32: 0769504 | B32: 21 | C32: 700g un-sliced white bread | D32: 600 | E32: each | G32: 0 | H32: 0 | I32: 0
A33: 0183488 | B33: 22 | C33: Plain white baked hotdog roll | D33: 19800 | E33: each | G33: 0 | H33: 0 | I33: 0
A34: 0183486 | B34: 23 | C34: Plain white baked round hamburger roll | D34: 29700 | E34: each | G34: 0 | H34: 0 | I34: 0
A35: 0183512 | B35: 24 | C35: Garlic bread | D35: 396 | E35: loaf | G35: 0 | H35: 0 | I35: 0
A36: 0655891 | B36: 25 | C36: 700g sliced wholegrain bread | D36: 1188 | E36: loaf | G36: 0 | H36: 0 | I36: 0
A37: 0183494 | B37: 26 | C37: French baguette bread | D37: 396 | E37: Each | G37: 0 | H37: 0 | I37: 0
A38: 0568322 | B38: 27 | C38: 100g Grissini bread sticks | D38: 792 | E38: packet | G38: 0 | H38: 0 | I38: 0
A39: 0748309 | B39: 28 | C39: 750g round flat rotis | D39: 80 | E39: packet | G39: 0 | H39: 0 | I39: 0
A40: 0747614 | B40: 29 | C40: 135g Folded into U-shape tortilla | D40: 5 | E40: packet | G40: 0 | H40: 0 | I40: 0
A41: 0747615 | B41: 30 | C41: 156g Folded into U-shape tortilla | D41: 5 | E41: packet | G41: 0 | H41: 0 | I41: 0
A42: 0747613 | B42: 31 | C42: 336g Folded into U-shape tortilla | D42: 5 | E42: packet | G42: 0 | H42: 0 | I42: 0
A43: 0749146 | B43: 32 | C43: 25cm diameter round flatbread | D43: 792 | E43: packet | G43: 0 | H43: 0 | I43: 0
A44: 0749572 | B44: 33 | C44: 100g thin round crisp bread | D44: 100 | E44: packet | G44: 0 | H44: 0 | I44: 0
A45: 0708212 | B45: 34 | C45: 20 X 520g plain round-flat tortillas | D45: 10 | E45: packet | G45: 0 | H45: 0 | I45: 0
A46: 0649468 | B46: 35 | C46: 1kg Liberty or equivalent bread crumbs | D46: 10 | E46: kg | G46: 0 | H46: 0 | I46: 0
C48: Cereal price/1kg box or bag
A49: 0576655 | B49: =B46+1 -> 36 | C49: 1kg All Bran Kellogg's or equivalent | D49: 990 | E49: box | G49: =ROUND(D49*F49,2) -> 0 | H49: =ROUND(G49*0.15,2) -> 0 | I49: =ROUND(G49+H49,2) -> 0
A50: 0651962 | B50: =B49+1 -> 37 | C50: 1kg Cornflakes Kellogg's or equivalent | D50: 990 | E50: box | G50: 0 | H50: 0 | I50: 0
A51: 0576602 | B51: 38 | C51: 1kg Crunch muesli | D51: 100 | E51: box | G51: 0 | H51: 0 | I51: 0
A52: 0183762 | B52: 39 | C52: 1kg Jungle oats original | D52: 713 | E52: box | G52: 0 | H52: 0 | I52: 0
A53: 0183764 | B53: 40 | C53: 1kg Plain rice krispies | D53: 200 | E53: box | G53: 0 | H53: 0 | I53: 0
A54: 0747438 | B54: 41 | C54: 375kg All-bran hi-fibre | D54: 2 | E54: box | G54: 0 | H54: 0 | I54: 0
A55: 0576510 | B55: 42 | C55: 1kg Nutzy crunch meusli | D55: 24 | E55: box | G55: 0 | H55: 0 | I55: 0
A56: 0747439 | B56: 43 | C56: 1kg coco pops | D56: 2 | E56: box | G56: 0 | H56: 0 | I56: 0
C58: Chemical leavening agents
A59: 0183649 | B59: =B56+1 -> 44 | C59: 1kg Royal baking powder | D59: 50 | E59: packet | G59: =ROUND(D59*F59,2) -> 0 | H59: =ROUND(G59*0.15,2) -> 0 | I59: =ROUND(G59+H59,2) -> 0
A60: 0567857 | B60: =B59+1 -> 45 | C60: 1kg Bicarbonate of soda | D60: 792 | E60: packet | G60: =ROUND(D60*F60,2) -> 0 | H60: =ROUND(G60*0.15,2) -> 0 | I60: =ROUND(G60+H60,2) -> 0
A61: 0744692 | B61: =B60+1 -> 46 | C61: 1kg cream of tarta | D61: 4 | E61: each | G61: =ROUND(D61*F61,2) -> 0 | H61: =ROUND(G61*0.15,2) -> 0 | I61: =ROUND(G61+H61,2) -> 0
C63: Cherry
A64: 0576484 | B64: =B61+1 -> 47 | C64: 410g Black pitted cherries | D64: 950 | E64: tin | G64: =ROUND(D64*F64,2) -> 0 | H64: =ROUND(G64*0.15,2) -> 0 | I64: =ROUND(G64+H64,2) -> 0
A65: 0576424 | B65: =B64+1 -> 48 | C65: 1kg Red glazed cherries(plastic bucket) | D65: 150 | E65: bucket | G65: =ROUND(D65*F65,2) -> 0 | H65: =ROUND(G65*0.15,2) -> 0 | I65: =ROUND(G65+H65,2) -> 0
A66: 0747772 | B66: =B65+1 -> 49 | C66: 680g cherry pitted | D66: 24 | E66: bottle | G66: =ROUND(D66*F66,2) -> 0 | H66: =ROUND(G66*0.15,2) -> 0 | I66: =ROUND(G66+H66,2) -> 0
A67: 0747435 | B67: =B66+1 -> 50 | C67: 1kg green whole cherry tub | D67: 24 | E67: tub | G67: =ROUND(D67*F67,2) -> 0 | H67: =ROUND(G67*0.15,2) -> 0 | I67: =ROUND(G67+H67,2) -> 0
C69: Chutney Grade 1
A70: 0649529 | B70: =B67+1 -> 51 | C70: 3KG Mrs balls Grade 1 | D70: 158 | E70: bucket | G70: =ROUND(D70*F70,2) -> 0 | H70: =ROUND(G70*0.15,2) -> 0 | I70: =ROUND(G70+H70,2) -> 0
C72: Coconut
A73: 0649549 | B73: =B70+1 -> 52 | C73: 1Kg Coconut fine particles | D73: 198 | E73: packet | G73: =ROUND(D73*F73,2) -> 0 | H73: =ROUND(G73*0.15,2) -> 0 | I73: =ROUND(G73+H73,2) -> 0
A74: 0744706 | B74: =B73+1 -> 53 | C74: 1kg Coconut flakes | D74: 198 | E74: packet | G74: =ROUND(D74*F74,2) -> 0 | H74: =ROUND(G74*0.15,2) -> 0 | I74: =ROUND(G74+H74,2) -> 0
C76: Dessert
A77: 0582251 | B77: =B74+1 -> 54 | C77: 1kg Chocolate mousse dessert carte dor | D77: 792 | E77: tub | G77: =ROUND(D77*F77,2) -> 0 | H77: =ROUND(G77*0.15,2) -> 0 | I77: =ROUND(G77+H77,2) -> 0
A78: 0582239 | B78: =B77+1 -> 55 | C78: 1kg Strawberry mousse dessert carte dor | D78: 792 | E78: tub | G78: 0 | H78: 0 | I78: 0
A79: 0649476 | B79: 56 | C79: 379ml Caramel dessert treat | D79: 100 | E79: tin | G79: 0 | H79: 0 | I79: 0
A80: 0649704 | B80: 57 | C80: 385g Condensed milk | D80: 950 | E80: can | G80: 0 | H80: 0 | I80: 0
A81: 0769514 | B81: 58 | C81: 1L Fresh cream meadowlands classic | D81: 4000 | E81: bottle | G81: 0 | H81: 0 | I81: 0
A82: 0746889 | B82: 59 | C82: 1kg Carte d'or white chocolate mousse | D82: 80 | E82: each | G82: 0 | H82: 0 | I82: 0
A83: 0649705 | B83: 60 | C83: 380g Unsweetened Ideal evaporated milk | D83: 4 | E83: each | G83: 0 | H83: 0 | I83: 0
A84: 0746890 | B84: 61 | C84: 1kg Carte d'or cream caramel dessert topping | D84: 48 | E84: each | G84: 0 | H84: 0 | I84: 0
C86: Dressing for salads
A87: 0672111 | B87: =B84+1 -> 62 | C87: 1L Knorr or equivalent blue cheese | D87: 396 | E87: bottle | G87: =ROUND(D87*F87,2) -> 0 | H87: =ROUND(G87*0.15,2) -> 0 | I87: =ROUND(G87+H87,2) -> 0
A88: 0672112 | B88: =B87+1 -> 63 | C88: 1L Knorr or equivalent ceasar | D88: 396 | E88: bottle | G88: 0 | H88: 0 | I88: 0
A89: 0672045 | B89: 64 | C89: 1L Knorr or equivalent greek | D89: 396 | E89: bottle | G89: 0 | H89: 0 | I89: 0
A90: 0672110 | B90: 65 | C90: 1L Knorr or equivalent italian | D90: 396 | E90: bottle | G90: 0 | H90: 0 | I90: 0
A91: 0747842 | B91: 66 | C91: 1L Hallmans or equivalent french | D91: 150 | E91: each | G91: 0 | H91: 0 | I91: 0
A92: 0747843 | B92: 67 | C92: 1L Hallmans or equivalent greek | D92: 150 | E92: each | G92: 0 | H92: 0 | I92: 0
A93: 0747841 | B93: 68 | C93: 1L Hallmans or equivalent ceaser | D93: 2 | E93: each | G93: 0 | H93: 0 | I93: 0
C95: Dried Fruit (Grade A)
A96: 0576651 | B96: =B93+1 -> 69 | C96: 1kg Prunes pitted | D96: 20 | E96: packet | G96: =ROUND(D96*F96,2) -> 0 | H96: =ROUND(G96*0.15,2) -> 0 | I96: =ROUND(G96+H96,2) -> 0
A97: 0672113 | B97: =B96+1 -> 70 | C97: 1kg Safari seedless raisins | D97: 396 | E97: packet | G97: 0 | H97: 0 | I97: 0
A98: 0576480 | B98: 71 | C98: 1kg Apple rings | D98: 20 | E98: kg | G98: 0 | H98: 0 | I98: 0
A99: 0576631 | B99: 72 | C99: Apricot halves | D99: 20 | E99: kg | G99: 0 | H99: 0 | I99: 0
A100: 0576399 | B100: 73 | C100: 1kg Banana | D100: 20 | E100: kg | G100: 0 | H100: 0 | I100: 0
A101: 0576481 | B101: 74 | C101: 1kg Mango slices | D101: 20 | E101: kg | G101: 0 | H101: 0 | I101: 0
A102: 0576624 | B102: 75 | C102: 1kg Dried mixed fruits | D102: 198 | E102: kg | G102: 0 | H102: 0 | I102: 0
A103: 0576463 | B103: 76 | C103: 1kg Peach peeled | D103: 20 | E103: kg | G103: 0 | H103: 0 | I103: 0
A104: 0576617 | B104: 77 | C104: 1kg Pears | D104: 20 | E104: kg | G104: 0 | H104: 0 | I104: 0
A105: 0747425 | B105: 78 | C105: 1kg Cranberry | D105: 1 | E105: each | G105: 0 | H105: 0 | I105: 0
A106: 0747424 | B106: 79 | C106: 1kg Fig | D106: 2 | E106: each | G106: 0 | H106: 0 | I106: 0
A107: 0746888 | B107: 80 | C107: 250g Goji berries | D107: 2 | E107: each | G107: 0 | H107: 0 | I107: 0
A108: 0746630 | B108: 81 | C108: 2 to 3.5g bean vanilla pods | D108: 6 | E108: each | G108: 0 | H108: 0 | I108: 0
A109: 0747454 | B109: 82 | C109: 1kg sultanas | D109: 2 | E109: each | G109: 0 | H109: 0 | I109: 0
A110: 0748307 | B110: 83 | C110: 250g Fruit sticks | D110: 20 | E110: each | G110: 0 | H110: 0 | I110: 0
C112: Essence
A113: 0576574 | B113: =B110+1 -> 84 | C113: 1L Moir's vanilla | D113: 396 | E113: bottle | G113: =ROUND(D113*F113,2) -> 0 | H113: =ROUND(G113*0.15,2) -> 0 | I113: =ROUND(G113+H113,2) -> 0
A114: 0713327 | B114: =B113+1 -> 85 | C114: 40ml Moir's lemon | D114: 100 | E114: bottle | G114: =ROUND(D114*F114,2) -> 0 | H114: =ROUND(G114*0.15,2) -> 0 | I114: =ROUND(G114+H114,2) -> 0
A115: 0747431 | B115: =B114+1 -> 86 | C115: 30ml Red food colouring | D115: 20 | E115: bottle | G115: =ROUND(D115*F115,2) -> 0 | H115: =ROUND(G115*0.15,2) -> 0 | I115: =ROUND(G115+H115,2) -> 0
A116: 0748782 | B116: =B115+1 -> 87 | C116: 50ml vanilla bean | D116: 6 | E116: bottle | G116: =ROUND(D116*F116,2) -> 0 | H116: =ROUND(G116*0.15,2) -> 0 | I116: =ROUND(G116+H116,2) -> 0
A117: 0748709 | B117: =B116+1 -> 88 | C117: 50ml mint | D117: 6 | E117: bottle | G117: =ROUND(D117*F117,2) -> 0 | H117: =ROUND(G117*0.15,2) -> 0 | I117: =ROUND(G117+H117,2) -> 0
C119: Eggs
A120: 0183523 | B120: =B117+1 -> 89 | C120: 30 Dozen large oval chicken eggs box of 360 | D120: 1500 | E120: box | G120: =ROUND(D120*F120,2) -> 0 | H120: Zero Rated | I120: =G120 -> 0
C122: Honey
A123: 0581116 | B123: =B120+1 -> 90 | C123: 1kg Pure gold | D123: 158 | E123: bottle | G123: =ROUND(D123*F123,2) -> 0 | H123: =ROUND(G123*0.15,2) -> 0 | I123: =ROUND(G123+H123,2) -> 0
A124: 0747822 | B124: =B123+1 -> 91 | C124: 250g Honey Comb raw unfiltered | D124: 6 | E124: each | G124: =ROUND(D124*F124,2) -> 0 | H124: =ROUND(G124*0.15,2) -> 0 | I124: =ROUND(G124+H124,2) -> 0
C126: Flour
A127: 0672115 | B127: =B124+1 -> 92 | C127: 12.5kg Golden cloud brown bread wheat flour | D127: 36 | E127: bag | G127: =ROUND(D127*F127,2) -> 0 | H127: =ROUND(G127*0.15,2) -> 0 | I127: =ROUND(G127+H127,2) -> 0
A128: 0583595 | B128: =B127+1 -> 93 | C128: 12.5kg Snowflake cake wheat flour | D128: 634 | E128: bag | G128: 0 | H128: =ROUND(G128*0.15,2) -> 0 | I128: =ROUND(G128+H128,2) -> 0
A129: 0582279 | B129: 94 | C129: 500g Semolina wheat powder | D129: 158 | E129: kg | G129: 0 | H129: =ROUND(G129*0.15,2) -> 0 | I129: =ROUND(G129+H129,2) -> 0
A130: 0582259 | B130: 95 | C130: 10kg Cake mix madeira powder | D130: 158 | E130: bag | G130: 0 | H130: =ROUND(G130*0.15,2) -> 0 | I130: =ROUND(G130+H130,2) -> 0
A131: 0713320 | B131: 96 | C131: 1kg Pancake and waffle premix | D131: 198 | E131: kg | G131: 0 | H131: =ROUND(G131*0.15,2) -> 0 | I131: =ROUND(G131+H131,2) -> 0
A132: 0583605 | B132: 97 | C132: 500g Fine powder maizena corn flour | D132: 1188 | E132: box | G132: 0 | H132: Zero Rated | I132: =G132 -> 0
A133: 0744696 | B133: 98 | C133: 1kg gluten free flour | D133: 2 | E133: each | G133: 0 | H133: =ROUND(G133*0.15,2) -> 0 | I133: =ROUND(G133+H133,2) -> 0
A134: 0744705 | B134: 99 | C134: 1kg snowflake nutty wheat | D134: 4 | E134: each | G134: 0 | H134: 0 | I134: 0
A135: 0744707 | B135: 100 | C135: 1kg Tempura powder | D135: 1 | E135: each | G135: 0 | H135: 0 | I135: 0
A136: 0744690 | B136: 101 | C136: 5kg pettina kokomix cake mix | D136: 1 | E136: each | G136: 0 | H136: 0 | I136: 0
A137: 0744691 | B137: 102 | C137: 5kg pettina sponge instant cake mix | D137: 1 | E137: each | G137: 0 | H137: 0 | I137: 0
A138: 0744689 | B138: 103 | C138: 5kg waffle premix | D138: 1 | E138: each | G138: 0 | H138: 0 | I138: 0
A139: 0744689 | B139: 104 | C139: 5kg waffle cake mix | D139: 10 | E139: each | G139: 0 | H139: 0 | I139: 0
A140: 0744688 | B140: 105 | C140: 5kg pettina fond suisse cake mix | D140: 1 | E140: each | G140: 0 | H140: 0 | I140: 0
A141: 0748707 | B141: 106 | C141: 25kg bran muffin milling cake mix | D141: 1 | E141: each | G141: 0 | H141: 0 | I141: 0
A142: 0744691 | B142: 107 | C142: 5kg pettina sponge cake mix | D142: 2 | E142: each | G142: 0 | H142: 0 | I142: 0
A143: 0747123 | B143: 108 | C143: 5kg plain white muffin cake mix | D143: 10 | E143: each | G143: 0 | H143: 0 | I143: 0
A144: 0568351 | B144: 109 | C144: 10kg cheese cake mix | D144: 1 | E144: each | G144: 0 | H144: 0 | I144: 0
C146: Jam
A147: 0581128 | B147: =B144+1 -> 110 | C147: 15g Rhodes or equivalent assorted jam portions box of 200 | D147: 119 | E147: box | G147: =ROUND(D147*F147,2) -> 0 | H147: =ROUND(G147*0.15,2) -> 0 | I147: =ROUND(G147+H147,2) -> 0
A148: 0581058 | B148: =B147+1 -> 111 | C148: 3kg Grade 1 strawberry | D148: 158 | E148: tin | G148: 0 | H148: 0 | I148: 0
A149: 0576623 | B149: 112 | C149: 3.75Kg All gold apricot | D149: 317 | E149: tin | G149: 0 | H149: 0 | I149: 0
A150: 0581105 | B150: 113 | C150: 3kg mixed fruit grade1 | D150: 158 | E150: each | G150: 0 | H150: 0 | I150: 0
A151: 0747122 | B151: 114 | C151: 340g thick texture fig grade A | D151: 6 | E151: each | G151: 0 | H151: 0 | I151: 0
A152: 0654049 | B152: 115 | C152: 15g marmalade sachet box of 200 | D152: 154 | E152: each | G152: 0 | H152: 0 | I152: 0
A153: 0654061 | B153: 116 | C153: 3.75kg All gold or equivalent strawberry | D153: 36 | E153: each | G153: 0 | H153: 0 | I153: 0
C155: Jelly
A156: 0576573 | B156: =B153+1 -> 117 | C156: 4kg Assorted carte d'or | D156: 475 | E156: box | G156: =ROUND(D156*F156,2) -> 0 | H156: =ROUND(G156*0.15,2) -> 0 | I156: =ROUND(G156+H156,2) -> 0
C158: Macaroni dry/Pasta/Grain
A159: 0672149 | B159: =B156+1 -> 118 | C159: 500g Elbow macaroni | D159: 1188 | E159: packet | G159: =ROUND(D159*F159,2) -> 0 | H159: =ROUND(G159*0.15,2) -> 0 | I159: =ROUND(G159+H159,2) -> 0
A160: 0644375 | B160: =B159+1 -> 119 | C160: 500g Pasta quills | D160: 792 | E160: packet | G160: 0 | H160: 0 | I160: 0
A161: 0644372 | B161: 120 | C161: 500g Pasta shells | D161: 1188 | E161: packet | G161: 0 | H161: 0 | I161: 0
A162: 0644374 | B162: 121 | C162: 500g Spaghetti | D162: 1188 | E162: packet | G162: 0 | H162: 0 | I162: 0
A163: 0644397 | B163: 122 | C163: 500g Tagliatelle | D163: 792 | E163: packet | G163: 0 | H163: 0 | I163: 0
A164: 0649731 | B164: 123 | C164: 500g flat macaroni | D164: 1188 | E164: packet | G164: 0 | H164: 0 | I164: 0
A165: 0713329 | B165: 124 | C165: 7cm Tartletshell round base pastry box of 12 | D165: 100 | E165: box | G165: 0 | H165: 0 | I165: 0
A166: 0713323 | B166: 125 | C166: 400g Drill bit shaped pasta egg noodles | D166: 396 | E166: packet | G166: 0 | H166: 0 | I166: 0
A167: 0649740 | B167: 126 | C167: 500g macaroni dry | D167: 100 | E167: each | G167: 0 | H167: 0 | I167: 0
A168: 0747819 | B168: 127 | C168: 500g vermicelli noodle | D168: 12 | E168: each | G168: 0 | H168: 0 | I168: 0
A169: 0744656 | B169: 128 | C169: 1kg screw noodle | D169: 100 | E169: each | G169: 0 | H169: 0 | I169: 0
A170: 0672150 | B170: 129 | C170: 500g drill bit shaped pasta | D170: 60 | E170: each | G170: 0 | H170: 0 | I170: 0
A171: 0744658 | B171: 130 | C171: 500g cylindrical tube cannelloni pasta | D171: 24 | E171: each | G171: 0 | H171: 0 | I171: 0
A172: 0744659 | B172: 131 | C172: 500g bowtie shape farfalle pasta | D172: 24 | E172: each | G172: 0 | H172: 0 | I172: 0
A173: 0744661 | B173: 132 | C173: 500g Futtucini strips | D173: 24 | E173: each | G173: 0 | H173: 0 | I173: 0
A174: 0720636 | B174: 133 | C174: 500g fattis & monis or equivalent beige dry lasagna | D174: 50 | E174: each | G174: 0 | H174: 0 | I174: 0
A175: 0744657 | B175: 134 | C175: 500g Linguine strips | D175: 24 | E175: each | G175: 0 | H175: 0 | I175: 0
A176: 0744667 | B176: 135 | C176: 500g cylinder gluten free penne pasta | D176: 12 | E176: each | G176: 0 | H176: 0 | I176: 0
A177: 0744666 | B177: 136 | C177: 500g curved tube penne rigate pasta | D177: 396 | E177: each | G177: 0 | H177: 0 | I177: 0
A178: 0747160 | B178: 137 | C178: 550g plain spring roll sheets | D178: 10 | E178: each | G178: 0 | H178: =ROUND(G178*0.15,2) -> 0 | I178: =ROUND(G178+H178,2) -> 0
C181: Maize
A182: 0583597 | B182: =B178+1 -> 138 | C182: 12.5kg white star or equivalent superbag (white) | D182: 1500 | E182: bag | G182: =ROUND(D182*F182,2) -> 0 | H182: Zero Rated | I182: =G182 -> 0
A183: 0583626 | B183: =B182+1 -> 139 | C183: 12.5kg ace or equivalent maize meal (white) | D183: 1 | E183: each | G183: 0 | H183: Zero Rated | I183: =G183 -> 0
A184: 0672124 | B184: 140 | C184: 10kg Grade1 Cream Imbo Samp | D184: 317 | E184: bag | G184: 0 | H184: ZeroRated | I184: =G184 -> 0
A185: 0748332 | B185: 141 | C185: 1kg Grade A polenta | D185: 120 | E185: each | G185: 0 | H185: =ROUND(G185*0.15,2) -> 0 | I185: =ROUND(G185+H185,2) -> 0
A186: 0736889 | B186: 142 | C186: 1kg Grade A popcorn seeds | D186: 30 | E186: each | G186: 0 | H186: 0 | I186: 0
A187: 0738646 | B187: 143 | C187: 1kg pure sorghum ground mabele grain wheat | D187: 12 | E187: each | G187: 0 | H187: 0 | I187: 0
A188: 0748314 | B188: 144 | C188: 1kg grade A Quinoa black whole grain wheat | D188: 12 | E188: each | G188: 0 | H188: 0 | I188: 0
A189: 0748313 | B189: 145 | C189: 1kg grade A Quinoa red whole grain wheat | D189: 12 | E189: each | G189: 0 | H189: 0 | I189: 0
A190: 0748614 | B190: 146 | C190: 1kg grade A Quinoa white whole grain wheat | D190: 12 | E190: each | G190: 0 | H190: 0 | I190: 0
A191: 0746985 | B191: 147 | C191: 1kg grade A barley cereal like grain wheat | D191: 6 | E191: each | G191: 0 | H191: 0 | I191: 0
A192: 0713321 | B192: 148 | C192: 1kg Bulgur cracked wheat grain | D192: 158 | E192: each | G192: 0 | H192: 0 | I192: 0
C195: Nuts EDBL
A196: 0581277 | B196: =B192+1 -> 149 | C196: 1kg Liberty oval whole almond | D196: 119 | E196: kg | G196: =ROUND(D196*F196,2) -> 0 | H196: =ROUND(G196*0.15,2) -> 0 | I196: =ROUND(G196+H196,2) -> 0
A197: 0672118 | B197: =B196+1 -> 150 | C197: 1kg Liberty oval mixed roasted almond | D197: 2 | E197: kg | G197: 0 | H197: 0 | I197: 0
A198: 0582310 | B198: 151 | C198: 50g Oval peanuts and raisins box of 36 | D198: 40 | E198: box | G198: 0 | H198: 0 | I198: 0
A199: 0582311 | B199: 152 | C199: 50g Oval simba peanuts box of 36 | D199: 119 | E199: kg | G199: 0 | H199: 0 | I199: 0
A200: 0187041 | B200: 153 | C200: 1kg Oval pecan | D200: 396 | E200: kg | G200: 0 | H200: 0 | I200: 0
A201: 0567812 | B201: 154 | C201: 1kg Liberty oval walnuts | D201: 198 | E201: kg | G201: 0 | H201: 0 | I201: 0
A202: 0747422 | B202: 155 | C202: 1kg Liberty sprinkle nuts | D202: 2 | E202: kg | G202: 0 | H202: 0 | I202: 0
A203: 0747422 | B203: 156 | C203: 1kg Liberty oval cashew | D203: 90 | E203: kg | G203: 0 | H203: 0 | I203: 0
A204: 0713326 | B204: 157 | C204: 1kg Oval hazelnut raw | D204: 20 | E204: kg | G204: 0 | H204: 0 | I204: 0
A205: 0713322 | B205: 158 | C205: 1kg Oval and dried hazelnut | D205: 20 | E205: kg | G205: 0 | H205: 0 | I205: 0
A206: 0747423 | B206: 159 | C206: 1kg Pistachio | D206: 2 | E206: kg | G206: 0 | H206: 0 | I206: 0
A207: 0567445 | B207: 160 | C207: 1kg Almond flakes | D207: 24 | E207: packet | G207: 0 | H207: 0 | I207: 0
C209: Oil
A210: 0672255 | B210: =B207+1 -> 161 | C210: Plain Sesame suti hui hong vegitable oil | D210: 119 | E210: litre | G210: =ROUND(D210*F210,2) -> 0 | H210: Zero Rated | I210: =G210 -> 0
A211: 0649755 | B211: =B210+1 -> 162 | C211: 20L Nola sunflower pure vegetable oil | D211: 650 | E211: bottle | G211: =ROUND(D211*F211,2) -> 0 | H211: Zero Rated | I211: =G211 -> 0
A212: 0582202 | B212: =B211+1 -> 163 | C212: 100% Olive oil | D212: 36 | E212: bottle | G212: =ROUND(D212*F212,2) -> 0 | H212: =ROUND(G212*0.15,2) -> 0 | I212: =ROUND(G212+H212,2) -> 0
A213: 0748784 | B213: =B212+1 -> 164 | C213: Truffle olive oil | D213: 4 | E213: each | G213: =ROUND(D213*F213,2) -> 0 | H213: =ROUND(G213*0.15,2) -> 0 | I213: =ROUND(G213+H213,2) -> 0
C215: Pie filling
A216: 0576483 | B216: =B213+1 -> 165 | C216: 1kg Blueberry filling | D216: 158 | E216: each | G216: =ROUND(D216*F216,2) -> 0 | H216: =ROUND(G216*0.15,2) -> 0 | I216: =ROUND(G216+H216,2) -> 0
A217: 0576576 | B217: =B216+1 -> 166 | C217: 1kg Strawberry filling | D217: 158 | E217: each | G217: =ROUND(D217*F217,2) -> 0 | H217: =ROUND(G217*0.15,2) -> 0 | I217: =ROUND(G217+H217,2) -> 0
A218: 0576395 | B218: =B217+1 -> 167 | C218: 1Kg Blackberry filling | D218: 50 | E218: each | G218: =ROUND(D218*F218,2) -> 0 | H218: =ROUND(G218*0.15,2) -> 0 | I218: =ROUND(G218+H218,2) -> 0
C220: Powders
A221: 0649547 | B221: =B218+1 -> 168 | C221: 1kg Liberty Cocoa podwer | D221: 158 | E221: kg | G221: =ROUND(D221*F221,2) -> 0 | H221: =ROUND(G221*0.15,2) -> 0 | I221: =ROUND(G221+H221,2) -> 0
A222: 0582286 | B222: =B221+1 -> 169 | C222: 2.5kg Carte d'or custard powder | D222: 792 | E222: box | G222: 0 | H222: 0 | I222: 0
A223: 0644512 | B223: 170 | C223: 1kg Kramess plain instant icing powder | D223: 198 | E223: packet | G223: 0 | H223: 0 | I223: 0
A224: 0649664 | B224: 171 | C224: 1kg Gelatine | D224: 36 | E224: packet | G224: 0 | H224: 0 | I224: 0
A225: 0748325 | B225: 172 | C225: Actiwhite meringue powder | D225: 1 | E225: each | G225: 0 | H225: 0 | I225: 0
A226: 0584243 | B226: 173 | C226: 1kg Cream brulle tub | D226: 36 | E226: each | G226: 0 | H226: 0 | I226: 0
... 372 more rows

Sheet 2.TUCKSHOP BOQ
A1: ITEM CODE | B1: ITEM NO | C1: DESCRIPTION | D1: 36 MONTH QTY | E1: UOM | F1: RATE EXCL VAT | G1: AMOUNT EXCL VAT | H1: VAT AMOUNT | I1: TOTAL AMOUNT INCL VAT
C2: TUCKSHOP
C3: GROCERIES
C4: BILL NO.2
C6: THE FOLLOWING SUPPLY AND DELIVERY OF DRY GOODS
C8: Biscuits
A9: 0568337 | B9: 1 | C9: 2kg Bakers choice assorted | D9: 360 | E9: packet | G9: =ROUND(D9*F9,2) -> 0 | H9: =ROUND(G9*0.15,2) -> 0 | I9: =ROUND(G9+H9,2) -> 0
A10: 0187110 | B10: =B9+1 -> 2 | C10: 200g Bakers eat sumore (box of 12) | D10: 360 | E10: box | G10: =ROUND(D10*F10,2) -> 0 | H10: =ROUND(G10*0.15,2) -> 0 | I10: =ROUND(G10+H10,2) -> 0
A11: 0187114 | B11: =B10+1 -> 3 | C11: 200g Bakers lemon creams (box of 12) | D11: 360 | E11: box | G11: 0 | H11: 0 | I11: 0
A12: 0568340 | B12: 4 | C12: 1kg Pyotts snack time | D12: 360 | E12: packet | G12: =ROUND(D12*F12,2) -> 0 | H12: =ROUND(G12*0.15,2) -> 0 | I12: =ROUND(G12+H12,2) -> 0
A13: 0187112 | B13: 5 | C13: 200g Royal cream (box of 12) | D13: 360 | E13: box | G13: 0 | H13: 0 | I13: 0
A14: 0187111 | B14: 6 | C14: 200g Tennis (box of 12) | D14: 360 | E14: box | G14: 0 | H14: 0 | I14: 0
A15: 0744638 | B15: 7 | C15: biscuit:boudoir bakers;box;200 g x 15 | D15: 2 | E15: each | G15: 0 | H15: =ROUND(G15*0.15,2) -> 0 | I15: =ROUND(G15+H15,2) -> 0
A16: 0744648 | B16: 8 | C16: crackers:crisp cream bakers;box;200 g x 12 | D16: 4 | E16: each | G16: 0 | H16: 0 | I16: 0
A17: 0744635 | B17: 9 | C17: biscuit:digestive bakers;original;box of 12 | D17: 4 | E17: each | G17: 0 | H17: 0 | I17: 0
A18: 0744639 | B18: 10 | C18: biscuit:bakers ginger nuts;box;190 g | D18: 24 | E18: each | G18: 0 | H18: 0 | I18: 0
A19: 0744641 | B19: 11 | C19: biscuit:good morning bakers;box;300 g x 12 | D19: 2 | E19: each | G19: 0 | H19: 0 | I19: 0
A20: 0744633 | B20: 12 | C20: biscuit:bakers blue label marie;200 g x 12 | D20: 5 | E20: each | G20: 0 | H20: 0 | I20: 0
A21: 0744647 | B21: 13 | C21: crackers:bakers mini cheddars;6 x 33 g | D21: 20 | E21: each | G21: 0 | H21: 0 | I21: 0
A22: 0744634 | B22: 14 | C22: biscuit:oreo original;box;128g x 20 | D22: 6 | E22: each | G22: 0 | H22: 0 | I22: 0
A23: 0744637 | B23: 15 | C23: biscuit:bakers provita rice cake;plain | D23: 12 | E23: each | G23: 0 | H23: 0 | I23: 0
A24: 0744640 | B24: 16 | C24: biscuit:wheatsworth bakers;box;200 g x 12 | D24: 4 | E24: each | G24: 0 | H24: 0 | I24: 0
A25: 0744636 | B25: 17 | C25: biscuit:good morning bakers;chocolate | D25: 2 | E25: each | G25: 0 | H25: 0 | I25: 0
A26: 0744631 | B26: 18 | C26: biscuit:good morning bakers;box;300 g x 12 | D26: 2 | E26: each | G26: 0 | H26: 0 | I26: 0
A27: 0744641 | B27: 19 | C27: biscuit:good morning bakers;box;300 g x 12 | D27: 2 | E27: each | G27: 0 | H27: 0 | I27: 0
A28: 0744630 | B28: 20 | C28: biscuit:good morning bakers;box;300 g x 12 | D28: 2 | E28: each | G28: 0 | H28: 0 | I28: 0
A29: 0744632 | B29: 21 | C29: biscuit:pretzels;salt;plastic bag;500 g | D29: 30 | E29: each | G29: 0 | H29: 0 | I29: 0
C31: Candy
A32: 0568442 | B32: =B29+1 -> 22 | C32: Airwaves Gum; Blackcurrent; Box of 30 | D32: 36 | E32: Box | G32: 0 | H32: 0 | I32: 0
A33: 0576571 | B33: =B32+1 -> 23 | C33: Airwaves Gum; Cherry Menthol;Box of 30 | D33: 36 | E33: Box | G33: 0 | H33: 0 | I33: 0
A34: 0568443 | B34: =B33+1 -> 24 | C34: Airwaves Gum; Green Mint;Box 14g of 30 | D34: 36 | E34: Box | G34: 0 | H34: 0 | I34: 0
A35: 0568444 | B35: 25 | C35: Astros; Assorted;Round;Box of 40: 38g | D35: 36 | E35: Box | G35: 0 | H35: 0 | I35: 0
A36: 0583912 | B36: 26 | C36: Chappies; Fruit;Square;Bag Plastic of 100 | D36: 36 | E36: packet | G36: 0 | H36: 0 | I36: 0
A37: 0583913 | B37: 27 | C37: Chappies; Grape;Square;Bag Plastic of 100 | D37: 36 | E37: packet | G37: 0 | H37: 0 | I37: 0
A38: 0583914 | B38: 28 | C38: Chappies; Mint;Square;Bag Plastic of 100 | D38: 36 | E38: packet | G38: 0 | H38: 0 | I38: 0
A39: 0583915 | B39: 29 | C39: Chappies; Spearmint;Square;3125 of 100 | D39: 36 | E39: packet | G39: 0 | H39: 0 | I39: 0
A40: 0568446 | B40: 30 | C40: Chappies; Water Melon;Square;Packet of 100 | D40: 36 | E40: packet | G40: 0 | H40: 0 | I40: 0
A41: 0583916 | B41: 31 | C41: Chappies; Wicks;Square;Bag Plastic of 100 | D41: 12 | E41: packet | G41: 0 | H41: 0 | I41: 0
A42: 0581273 | B42: 32 | C42: Clorets Gum;Eliminator;Rectangular box of 24x 10piece | D42: 36 | E42: Box | G42: 0 | H42: 0 | I42: 0
A43: 0582309 | B43: 33 | C43: Clorets Gum; Fresh Mint; Rectangular box of 24x 10piece | D43: 24 | E43: Box | G43: 0 | H43: 0 | I43: 0
A44: 0576654 | B44: 34 | C44: Clorets Gum; Original; Rectangular box of 24x 10piece | D44: 36 | E44: Box | G44: 0 | H44: 0 | I44: 0
A45: 0583920 | B45: 35 | C45: Dentyne Gum;Gentle Mint; Box;12g box of 50 | D45: 24 | E45: Box | G45: 0 | H45: 0 | I45: 0
A46: 0583969 | B46: 36 | C46: Dentyne Gum;Peppermint; Rectangular box of 50 | D46: 24 | E46: Box | G46: 0 | H46: 0 | I46: 0
A47: 0583921 | B47: 37 | C47: Dentyne Gum;Spearmint; Rectangular box of 50 | D47: 2 | E47: Box | G47: 0 | H47: 0 | I47: 0
A48: 0576452 | B48: 38 | C48: Dentyne Gum;Strawberry; Rectangular box of 50 | D48: 2 | E48: Box | G48: 0 | H48: 0 | I48: 0
A49: 0584247 | B49: 39 | C49: Fizz Pop;Apple; Plastic Tub; 20.5g | D49: 36 | E49: Tub | G49: 0 | H49: 0 | I49: 0
A50: 0582277 | B50: 40 | C50: Fizz Pop;Crème Soda; Plastic Tub | D50: 36 | E50: Tub | G50: 0 | H50: 0 | I50: 0
A51: 0584256 | B51: 41 | C51: Fizz Pop;Grape; Plastic Tub; 20.5g | D51: 24 | E51: Tub | G51: 0 | H51: 0 | I51: 0
A52: 0187040 | B52: 42 | C52: Fizz Pop;Humbugs;Plastic Tub | D52: 12 | E52: Tub | G52: 0 | H52: 0 | I52: 0
A53: 0584238 | B53: 43 | C53: Fizz Pop;Strawberry;Plastic Tub | D53: 36 | E53: Tub | G53: 0 | H53: 0 | I53: 0
A54: 0581081 | B54: 44 | C54: Halls Sweets;Cherry; Square;Box | D54: 24 | E54: Box | G54: 0 | H54: 0 | I54: 0
A55: 0576436 | B55: 45 | C55: Halls; Extra Strong; Square;Box 54g | D55: 36 | E55: Box | G55: 0 | H55: 0 | I55: 0
A56: 0576519 | B56: 46 | C56: Halls; Honey & Lemon;Square; Box | D56: 24 | E56: Box | G56: 0 | H56: 0 | I56: 0
A57: 0576402 | B57: 47 | C57: Halls; Honey;Square; Box;54g | D57: 24 | E57: Box | G57: 0 | H57: 0 | I57: 0
A58: 0576569 | B58: 48 | C58: Halls; Menthol;Square; Box;54g | D58: 24 | E58: Box | G58: 0 | H58: 0 | I58: 0
A59: 0576601 | B59: 49 | C59: Halls; Mentholyptus;Square; Box;54g | D59: 36 | E59: Box | G59: 0 | H59: 0 | I59: 0
A60: 0576425 | B60: 50 | C60: Halls; Spearmint;Square; Box;54g | D60: 24 | E60: Box | G60: 0 | H60: 0 | I60: 0
A61: 0576621 | B61: 51 | C61: Jelly Tots Large; Berries;Round;Box of 40 | D61: 24 | E61: Box | G61: 0 | H61: 0 | I61: 0
A62: 0576477 | B62: 52 | C62: Jelly Tots Large; Original;Round of 40 | D62: 36 | E62: Box | G62: 0 | H62: 0 | I62: 0
A63: 0576594 | B63: 53 | C63: Jelly Tots Large; Sour;Round;Box of 40 | D63: 18 | E63: Box | G63: 0 | H63: 0 | I63: 0
A64: 0582278 | B64: 54 | C64: Maynard Wine Gums; Assorted;Round | D64: 36 | E64: Box | G64: 0 | H64: 0 | I64: 0
A65: 0576527 | B65: 55 | C65: Mentos;Grape; Roll; Box 37,5g x 40 | D65: 30 | E65: Box | G65: 0 | H65: 0 | I65: 0
A66: 0576506 | B66: 56 | C66: Mentos;Mint; Roll; Box 37,5g x 40 | D66: 30 | E66: Box | G66: 0 | H66: 0 | I66: 0
A67: 0583923 | B67: 57 | C67: Mentos;Rainbow; Roll; Box 37,5g x 40 | D67: 30 | E67: Box | G67: 0 | H67: 0 | I67: 0
A68: 0576423 | B68: 58 | C68: Mentos;Spearmint; Roll; Box 37,5g x 40 | D68: 24 | E68: Box | G68: 0 | H68: 0 | I68: 0
A69: 0576618 | B69: 59 | C69: Mentos;Strawberry; Roll; Box 37,5g x 40 | D69: 30 | E69: Box | G69: 0 | H69: 0 | I69: 0
A70: 0581066 | B70: 60 | C70: Stimorol Gum; Cherry Menthol;Box 14g x 12 | D70: 30 | E70: Box | G70: 0 | H70: 0 | I70: 0
A71: 0581134 | B71: 61 | C71: Stimorol Gum; Original;Rectangular 14g x 12 | D71: 30 | E71: Box | G71: 0 | H71: 0 | I71: 0
A72: 0583924 | B72: 62 | C72: Stimorol Gum; Spearmint;Rectangular 14g x 12 | D72: 30 | E72: Box | G72: 0 | H72: 0 | I72: 0
A73: 0581028 | B73: 63 | C73: Stimorol Gum; Wicks Mint;Box 12g | D73: 12 | E73: Box | G73: 0 | H73: 0 | I73: 0
A74: 0581109 | B74: 64 | C74: Stimorol Gum; Wild Cherry;Box 12g | D74: 36 | E74: Box | G74: 0 | H74: 0 | I74: 0
A75: 0581135 | B75: 65 | C75: Stimorol; Cinnamon;Rectangular;Box | D75: 36 | E75: Box | G75: 0 | H75: 0 | I75: 0
A76: 0576465 | B76: 66 | C76: Super C Energy; Orange, Round; Box 36.9g x 24 | D76: 36 | E76: Box | G76: 0 | H76: 0 | I76: 0
A77: 0576652 | B77: 67 | C77: Super C Energy; Pineapple, Round; Box 36.9g x 24 | D77: 36 | E77: Box | G77: 0 | H77: 0 | I77: 0
A78: 0576633 | B78: 68 | C78: Super C Energy; Tangerine, Round; Box 36.9g x 24 | D78: 36 | E78: Box | G78: 0 | H78: 0 | I78: 0
A79: 0584248 | B79: 69 | C79: Yogueta Lollipop; Tangerine, Assorted; 21g | D79: 36 | E79: packet | G79: 0 | H79: 0 | I79: 0
A80: 0584255 | B80: 70 | C80: Turnbull Sweets;Butterscotch 5kg | D80: 180 | E80: box | G80: 0 | H80: 0 | I80: 0
A81: 0584240 | B81: 71 | C81: Turnbull Sweets;Mint:Bag Plastic 5kg | D81: 180 | E81: box | G81: 0 | H81: 0 | I81: 0
A82: 0582244 | B82: 72 | C82: Endearmints:Original:Round:1kg | D82: 180 | E82: box | G82: 0 | H82: 0 | I82: 0
A83: 0576533 | B83: 73 | C83: candy:smarties medium;chocolate;box of 24 | D83: 36 | E83: box | G83: 0 | H83: =ROUND(G83*0.15,2) -> 0 | I83: =ROUND(G83+H83,2) -> 0
A84: 0744649 | B84: 74 | C84: candy:jelly babies;beacon;plastic packet | D84: 2 | E84: box | G84: =ROUND(D84*F84,2) -> 0 | H84: 0 | I84: 0
A85: 0747161 | B85: 75 | C85: candy:maynards jelly beans;fruity;60 g | D85: 2 | E85: box | G85: 0 | H85: 0 | I85: 0
C87: Chips
A88: 0576619 | B88: =B85+1 -> 76 | C88: Crinkle Cut;Simba;Mexican Chilli box of 48 | D88: 36 | E88: Box | G88: 0 | H88: 0 | I88: 0
A89: 0649501 | B89: =B88+1 -> 77 | C89: Crinkle Cut;Simba;Salt and Vinegar box of 48 | D89: 30 | E89: Box | G89: 0 | H89: 0 | I89: 0
A90: 0576472 | B90: =B89+1 -> 78 | C90: Crinkle Cut;Simba;Tomato; Box; 36g box of 48 | D90: 24 | E90: Box | G90: 0 | H90: 0 | I90: 0
A91: 0584001 | B91: 79 | C91: Niknaks; Simba;Cheese;Box; 55g box of 48 | D91: 36 | E91: Box | G91: 0 | H91: 0 | I91: 0
A92: 0576648 | B92: 80 | C92: Plain;Big Corn Bites; BBQ,Box; 50g box of 48 | D92: 36 | E92: Box | G92: 0 | H92: 0 | I92: 0
A93: 0576557 | B93: 81 | C93: Plain;Big Corn Bites; Spicy;Box; 50g box of 48 | D93: 12 | E93: Box | G93: =ROUND(D93*F93,2) -> 0 | H93: =ROUND(G93*0.15,2) -> 0 | I93: =ROUND(G93+H93,2) -> 0
A94: 0576413 | B94: 82 | C94: Plain;Big Corn Bites; Tomato;Box box of 48 | D94: 36 | E94: Box | G94: 0 | H94: 0 | I94: 0
A95: 0576411 | B95: 83 | C95: Plain;Doritos; Cheese Supreme; Box box of 48 | D95: 36 | E95: Box | G95: 0 | H95: 0 | I95: 0
A96: 0576493 | B96: 84 | C96: Plain;Doritos; Sweet Chilli Pepper box of 48 | D96: 25 | E96: Box | G96: 0 | H96: 0 | I96: 0
A97: 0576442 | B97: 85 | C97: Plain;Fritos;Barbeque; Box; 50g x 48 | D97: 2 | E97: Box | G97: 0 | H97: 0 | I97: 0
A98: 0576438 | B98: 86 | C98: Plain;Fritos;Tomato; Box; 50g x 48 | D98: 2 | E98: Box | G98: 0 | H98: 0 | I98: 0
A99: 0576429 | B99: 87 | C99: Plain;Lays;Lightly Salted;Box;36g x 48 | D99: 36 | E99: Box | G99: 0 | H99: 0 | I99: 0
A100: 0576503 | B100: 88 | C100: Plain;Lays:Peppadew;Box;36g x 48 | D100: 24 | E100: Box | G100: 0 | H100: 0 | I100: 0
A101: 0576410 | B101: 89 | C101: Plain·Lays;Salt and Vinega:Box x 48 | D101: 36 | E101: Box | G101: 0 | H101: 0 | I101: 0
A102: 0576525 | B102: 90 | C102: Plain:Lays;Sour Cream and Onion;Box x 48 | D102: 36 | E102: Box | G102: 0 | H102: 0 | I102: 0
A103: 0576473 | B103: 91 | C103: Plain;Lays;Spring Cheese & Onion x 48 | D103: 36 | E103: Box | G103: 0 | H103: 0 | I103: 0
A104: 0576575 | B104: 92 | C104: Plain;Lays;Thai Sweet Chilli;Box x 48 | D104: 36 | E104: Box | G104: 0 | H104: 0 | I104: 0
A105: 0649494 | B105: 93 | C105: Plain;Simba;Cheese and Onion;Pkt box of 48 | D105: 36 | E105: Box | G105: 0 | H105: 0 | I105: 0
A106: 0747231 | B106: 94 | C106: corn:popcorn jumping jack;grade a;100 g Gourmet white cheddar | D106: 4 | E106: each | G106: 0 | H106: =ROUND(G106*0.15,2) -> 0 | I106: =ROUND(G106+H106,2) -> 0
A107: 0747231 | B107: 95 | C107: corn:popcorn jumping jack;grade a;100 g Gourmet cheese and green onion | D107: 6 | E107: each | G107: 0 | H107: 0 | I107: 0
C109: Chocolate
A110: 0576592 | B110: =B107+1 -> 96 | C110: Aero chunky;box·38 g;bar box of 40 | D110: 24 | E110: Box | G110: 0 | H110: 0 | I110: 0
A111: 0576482 | B111: =B110+1 -> 97 | C111: Aero chunky;box:38 g: caramel:bar box of 40 | D111: 24 | E111: Box | G111: 0 | H111: 0 | I111: 0
A112: 0576427 | B112: =B111+1 -> 98 | C112: Aero chunky;box:38 g:milky:bar box of 40 | D112: 36 | E112: Box | G112: =ROUND(D112*F112,2) -> 0 | H112: =ROUND(G112*0.15,2) -> 0 | I112: =ROUND(G112+H112,2) -> 0
A113: 0567696 | B113: 99 | C113: Aero;box:45 g:milk;bar box of 40 | D113: 36 | E113: Box | G113: 0 | H113: 0 | I113: 0
A114: 0567698 | B114: 100 | C114: Aero:box;45g:peppermint;bar box of 40 | D114: 24 | E114: Box | G114: 0 | H114: 0 | I114: 0
A115: 0576495 | B115: 101 | C115: Aero;packet;45g;caramel:bar box of 40 | D115: 12 | E115: Box | G115: 0 | H115: 0 | I115: 0
A116: 0659859 | B116: 102 | C116: Bakels chockex dark:packet | D116: 400 | E116: Box | G116: 0 | H116: 0 | I116: 0
A117: 0576614 | B117: 103 | C117: Bar one;box;100 g;bar | D117: 36 | E117: Box | G117: 0 | H117: 0 | I117: 0
A118: 0576559 | B118: 104 | C118: Bar one;box;so g;peanut blast | D118: 36 | E118: Box | G118: 0 | H118: 0 | I118: 0
A119: 0567700 | B119: 105 | C119: Bounty:box;52 g;bar | D119: 24 | E119: Box | G119: 0 | H119: 0 | I119: 0
A120: 0582199 | B120: 106 | C120: Cadbury tumbles;box;65 g of 36 | D120: 30 | E120: Box | G120: 0 | H120: 0 | I120: 0
A121: 0644497 | B121: 107 | C121: Chockex chips white:sox:1 kg | D121: 500 | E121: Box | G121: 0 | H121: 0 | I121: 0
A122: 0576430 | B122: 108 | C122: Crunchie;box;40 g;bar of 40 | D122: 30 | E122: Box | G122: 0 | H122: 0 | I122: 0
A123: 0576468 | B123: 109 | C123: Damascus french nougat;75 g | D123: 30 | E123: Box | G123: 0 | H123: 0 | I123: 0
A124: 0748330 | B124: 110 | C124: Ferrero Rocher 16 in pack | D124: 2 | E124: Box | G124: =ROUND(D124*F124,2) -> 0 | H124: =ROUND(G124*0.15,2) -> 0 | I124: =ROUND(G124+H124,2) -> 0
A125: 0584004 | B125: 111 | C125: chocolate:flake;box;32 g;cylinder | D125: 2 | E125: each | G125: =ROUND(D125*F125,2) -> 0 | H125: =ROUND(G125*0.15,2) -> 0 | I125: =ROUND(G125+H125,2) -> 0
A126: 0584244 | B126: 112 | C126: Jungle enegy;box;40 g;bar box of 30 | D126: 36 | E126: Box | G126: 0 | H126: 0 | I126: 0
A127: 0584249 | B127: 113 | C127: Jungle energy;box;40g;banana box of 30 | D127: 36 | E127: Box | G127: 0 | H127: 0 | I127: 0
A128: 0584241 | B128: 114 | C128: Jungle energy;box;40g;bar box of 30 | D128: 36 | E128: Box | G128: 0 | H128: 0 | I128: 0
A129: 0584253 | B129: 115 | C129: Jungle energy;box:40g; yoghurt box of 30 | D129: 36 | E129: Box | G129: 0 | H129: 0 | I129: 0
A130: 0584236 | B130: 116 | C130: Jungle energy;box;48g;berries box of 30 | D130: 36 | E130: Box | G130: 0 | H130: 0 | I130: 0
A131: 0576479 | B131: 117 | C131: Lunch bar;box;46g;bar box of 40 | D131: 36 | E131: Box | G131: 0 | H131: 0 | I131: 0
A132: 0576581 | B132: 118 | C132: Lunch bar;box;46g;original box of 40 | D132: 36 | E132: Box | G132: 0 | H132: 0 | I132: 0
A133: 0580141 | B133: 119 | C133: Peppermint crisp;box:49 g box of 40 | D133: 30 | E133: Box | G133: 0 | H133: 0 | I133: 0
A134: 0576640 | B134: 120 | C134: Ps:box:46g:caramel | D134: 36 | E134: Box | G134: 0 | H134: 0 | I134: 0
A135: 0576388 | B135: 121 | C135: Pvm energy bar:box:45g;bar box of 20 | D135: 30 | E135: Box | G135: 0 | H135: 0 | I135: 0
A136: 0576396 | B136: 122 | C136: Pvm energy bar;box;45 g;bar box of 20 | D136: 30 | E136: Box | G136: 0 | H136: 0 | I136: 0
A137: 0576422 | B137: 123 | C137: Pvm energy bar;box;45 g;bar box of 20 | D137: 30 | E137: Box | G137: 0 | H137: 0 | I137: 0
A138: 0576499 | B138: 124 | C138: Pvm energy bar:box;45 g;bar box of 20 | D138: 30 | E138: Box | G138: 0 | H138: 0 | I138: 0
A139: 0576524 | B139: 125 | C139: Pvm energy bar;box:45 g;bar box of 20 | D139: 30 | E139: Box | G139: 0 | H139: 0 | I139: 0
A140: 0576535 | B140: 126 | C140: Pvm energy bar;box:45 g;bar box of 20 | D140: 30 | E140: Box | G140: 0 | H140: 0 | I140: 0
A141: 0576548 | B141: 127 | C141: Pvm energy bar;box:45 g·bar box of 20 | D141: 30 | E141: Box | G141: 0 | H141: 0 | I141: 0
A142: 0583954 | B142: 128 | C142: Pvm energy bar;box:45 g;bar box of 20 | D142: 30 | E142: Box | G142: 0 | H142: 0 | I142: 0
A143: 0584002 | B143: 129 | C143: Pvm energy bar:box:45 g;bar box of 20 | D143: 30 | E143: Box | G143: 0 | H143: 0 | I143: 0
A144: 0576603 | B144: 130 | C144: Snacker:box (24);45g:fruit | D144: 30 | E144: Box | G144: 0 | H144: 0 | I144: 0
A145: 0576397 | B145: 131 | C145: Snacker;box (24):45g:yogurt | D145: 24 | E145: Box | G145: 0 | H145: 0 | I145: 0
A146: 0581102 | B146: 132 | C146: Snacker;box;45 g;muesll:bar box of 24 | D146: 30 | E146: Box | G146: 0 | H146: 0 | I146: 0
A147: 0576607 | B147: 133 | C147: Tex;box (401;40g:bar box of 40 | D147: 24 | E147: Box | G147: 0 | H147: 0 | I147: 0
A148: 0581043 | B148: 134 | C148: Tumbles;box:65g;raisins;round box of 40 | D148: 30 | E148: Box | G148: 0 | H148: 0 | I148: 0
A149: 0581115 | B149: 135 | C149: Tumbles·box;65g;shortcake box of 40 | D149: 30 | E149: Box | G149: 0 | H149: 0 | I149: 0
A150: 0576590 | B150: 136 | C150: Tv bar·box;47g;milk box of 40 | D150: 24 | E150: Box | G150: 0 | H150: 0 | I150: 0
A151: 0576610 | B151: 137 | C151: Tv bar;box;47g;white box of 40 | D151: 24 | E151: Box | G151: 0 | H151: 0 | I151: 0
A152: 0583987 | B152: 138 | C152: Vermicelll 1 kg | D152: 200 | E152: kg | G152: 0 | H152: 0 | I152: 0
A153: 0184712 | B153: 139 | C153: chocolate:quality street;pkt;900 g | D153: 12 | E153: each | G153: 0 | H153: =ROUND(G153*0.15,2) -> 0 | I153: =ROUND(G153+H153,2) -> 0
A154: 0747848 | B154: 140 | C154: chocolate:quality street;packet;435 g | D154: 12 | E154: each | G154: =ROUND(D154*F154,2) -> 0 | H154: 0 | I154: 0
C156: THE FOLLOWING SUPPLY AND DELIVERY OF MISCELLENEOUS
C158: Medicine
A159: 0582300 | B159: =B154+1 -> 141 | C159: Med lemon;powder sachet:72 | D159: 36 | E159: Box | G159: 0 | H159: 0 | I159: 0
A160: 0582248 | B160: =B159+1 -> 142 | C160: Eno satchets;powder:box:72 | D160: 36 | E160: Box | G160: 0 | H160: 0 | I160: 0
A161: 0576406 | B161: =B160+1 -> 143 | C161: Rennies:tablet;24;box;12 | D161: 36 | E161: Box | G161: 0 | H161: 0 | I161: 0
A162: 0576538 | B162: 144 | C162: Compral:tablet:2 in a packet 106kg | D162: 36 | E162: Box | G162: =ROUND(D162*F162,2) -> 0 | H162: =ROUND(G162*0.15,2) -> 0 | I162: =ROUND(G162+H162,2) -> 0
A163: 0582235 | B163: 145 | C163: Painkiller: disprin blue;tablet:box:96 | D163: 36 | E163: Box | G163: 0 | H163: 0 | I163: 0
A164: 0576448 | B164: 146 | C164: Painkiller: disprin red:tablet:box :96 | D164: 36 | E164: Box | G164: 0 | H164: 0 | I164: 0
A165: 0576556 | B165: 147 | C165: Painkiller: grandpa ;powder:box:144 | D165: 36 | E165: Box | G165: 0 | H165: 0 | I165: 0
A166: 0576586 | B166: 148 | C166: Painkilr:panado:tablet;box:48 | D166: 36 | E166: Box | G166: 0 | H166: 0 | I166: 0
A167: 0582181 | B167: 149 | C167: Zam-buck;ointment;7g;tin;36 | D167: 36 | E167: Box | G167: 0 | H167: 0 | I167: 0
A168: 0582299 | B168: 150 | C168: Vicks vaporub;ointment;12g;tin | D168: 36 | E168: Box | G168: 0 | H168: 0 | I168: 0
A169: 0576606 | B169: 151 | C169: Medicine painkiller: disprin blue;tablet;48 in box | D169: 36 | E169: each | G169: 0 | H169: =ROUND(G169*0.15,2) -> 0 | I169: =ROUND(G169+H169,2) -> 0
C171: Cream
A172: 0583997 | B172: =B169+1 -> 152 | C172: Balm: lip care;plastic hard;4.8g box of 12 | D172: 12 | E172: Box | G172: 0 | H172: 0 | I172: 0
C174: Toothpaste
A175: 0582227 | B175: =B172+1 -> 153 | C175: Colgate 100ml;various;12 | D175: 36 | E175: Box | G175: 0 | H175: 0 | I175: 0
C177: Cigarrettes
A178: 0576637 | B178: =B175+1 -> 154 | C178: cigarette tobac:dunhill;white infinite 10x20 in box | D178: 36 | E178: each | G178: 0 | H178: =ROUND(G178*0.15,2) -> 0 | I178: =ROUND(G178+H178,2) -> 0
A179: 0649532 | B179: =B178+1 -> 155 | C179: cigarette tobac:courtleigh;lights hard 10x20 in box | D179: 36 | E179: each | G179: 0 | H179: =ROUND(G179*0.15,2) -> 0 | I179: =ROUND(G179+H179,2) -> 0
A180: 0576588 | B180: =B179+1 -> 156 | C180: cigarette tobacco: peter stuyvesant;20;packet x 10 in box | D180: 36 | E180: each | G180: 0 | H180: 0 | I180: 0
A181: 0576530 | B181: 157 | C181: cigarette tobacco: dunhill;menthol;20;packet x 10 in box | D181: 20 | E181: each | G181: 0 | H181: 0 | I181: 0
A182: 0576391 | B182: 158 | C182: cigarette tobacco :Marlboro; original gold 10x20 in box | D182: 20 | E182: each | G182: 0 | H182: 0 | I182: 0
A183: 0576622 | B183: 159 | C183: cigarette tobacco :peter stuyvesant;blue;20 x 10 in box | D183: 20 | E183: each | G183: 0 | H183: 0 | I183: 0
A184: 0576598 | B184: 160 | C184: cigarette tobacco marlboro;standard;20;packet 10 x 20 in box | D184: 20 | E184: each | G184: 0 | H184: 0 | I184: 0
A185: 0576466 | B185: 161 | C185: cigarette tobac:dunhill;infinite light 10 x 20 in box | D185: 20 | E185: each | G185: 0 | H185: 0 | I185: 0
A186: 0576643 | B186: 162 | C186: cigarette tobacco :camel; lights hard;20;packet x 10 in box | D186: 20 | E186: each | G186: 0 | H186: 0 | I186: 0
A187: 0576408 | B187: 163 | C187: cigarette tobacco: camel; filter hard;20;packet x 10 in box | D187: 20 | E187: each | G187: 0 | H187: 0 | I187: 0
C189: Sanitary pad
A190: 0582206 | B190: =B187+1 -> 164 | C190: Pad sntry:menstruation;yes;10 | D190: 36 | E190: each | G190: 0 | H190: 0 | I190: 0
B243: SUB TOTAL FOR TUCKSHOP GROCERIES- CARRIED TO FINAL SUMMARY | G243: =SUM(G9:G242) -> 0 | H243: =SUM(H9:H242) -> 0 | I243: =SUM(I9:I242) -> 0

Sheet 3.WORKSHOP, CS, CONF & ROOM BOQ
A1: ITEM CODE | B1: ITEM NO | C1: DESCRIPTION | D1: 36 MONTH QTY | E1: UOM | F1: RATE EXCL VAT | G1: AMOUNT EXCL VAT | H1: VAT AMOUNT | I1: TOTAL AMOUNT INCL VAT
C2: WORKSHOP, COST CENTRES, CONFERENCES & ROOMS
C3: GROCERIES
C4: BILL NO.3
C6: THE FOLLOWING SUPPLY AND DELIVERY OF DRY GOODS
C8: Coffee(Instant)
A9: 0649571 | B9: 1 | C9: 1.8g Nescafe classic sticks box of 200 | D9: 9000 | E9: box | G9: =ROUND(D9*F9,2) -> 0 | H9: =ROUND(G9*0.15,2) -> 0 | I9: =ROUND(G9+H9,2) -> 0
A10: 0567701 | B10: =B9+1 -> 2 | C10: 1Kg Cappucino powder | D10: 2 | E10: each | G10: 0 | H10: 0 | I10: 0
A11: 0707284 | B11: =B10+1 -> 3 | C11: 200g Jacobs | D11: 250 | E11: Jar | G11: 0 | H11: 0 | I11: 0
A12: 0745415 | B12: 4 | C12: 200g Nestle decaf granules | D12: 6 | E12: each | G12: 0 | H12: 0 | I12: 0
A13: 0708213 | B13: 5 | C13: 1.8g Jacobs instant granules pack of 26 | D13: 4 | E13: each | G13: 0 | H13: 0 | I13: 0
A14: 0649569 | B14: 6 | C14: 200g Nescafe classic granules | D14: 6 | E14: each | G14: 0 | H14: 0 | I14: 0
A15: 0649587 | B15: 7 | C15: 1.8g Decaf Nescafe sticks box of 200 | D15: 3 | E15: each | G15: 0 | H15: 0 | I15: 0
A16: 0738174 | B16: 8 | C16: 200g Nescafe gold granules | D16: 6 | E16: each | G16: 0 | H16: 0 | I16: 0
A17: 0746480 | B17: 9 | C17: 20g Ciro hot chocolate sticks box of 70 | D17: 2 | E17: each | G17: 0 | H17: 0 | I17: 0
A18: 0738252 | B18: 10 | C18: 1kg Roasted to a medium to dark | D18: 5 | E18: each | G18: 0 | H18: 0 | I18: 0
A19: 0745414 | B19: 11 | C19: Hot chocolate sticks box of 70 | D19: 2 | E19: each | G19: 0 | H19: 0 | I19: 0
A20: 0161179 | B20: 12 | C20: 1kg Hot chocolate | D20: 6 | E20: kg | G20: 0 | H20: 0 | I20: 0
C22: Powders
A23: 0582198 | B23: =B20+1 -> 13 | C23: Non dairy ellis brown sticks 4g box of 200 | D23: 9000 | E23: box | G23: =ROUND(D23*F23,2) -> 0 | H23: =ROUND(G23*0.15,2) -> 0 | I23: =ROUND(G23+H23,2) -> 0
C25: Sugar
A26: 0707829 | B26: =B23+1 -> 14 | C26: 5kg Hullets brown tube sachets box of 1000 | D26: 5000 | E26: box | G26: =ROUND(D26*F26,2) -> 0 | H26: =ROUND(G26*0.15,2) -> 0 | I26: =ROUND(G26+H26,2) -> 0
A27: 0604956 | B27: =B26+1 -> 15 | C27: 5kg Hullets white tube sachets box of 1000 | D27: 5000 | E27: box | G27: =ROUND(D27*F27,2) -> 0 | H27: =ROUND(G27*0.15,2) -> 0 | I27: =ROUND(G27+H27,2) -> 0
A28: 0582216 | B28: =B27+1 -> 16 | C28: Canderel non sugar sweetener sachets box of 1000 | D28: 30 | E28: box | G28: =ROUND(D28*F28,2) -> 0 | H28: =ROUND(G28*0.15,2) -> 0 | I28: =ROUND(G28+H28,2) -> 0
C30: Tea
A31: 0583599 | B31: =B28+1 -> 17 | C31: 2.5g Five roses tagged box of 200 | D31: 40 | E31: box | G31: =ROUND(D31*F31,2) -> 0 | H31: =ROUND(G31*0.15,2) -> 0 | I31: =ROUND(G31+H31,2) -> 0
A32: 0649888 | B32: =B31+1 -> 18 | C32: 2g Rooibos laager box of 200 | D32: 40 | E32: box | G32: =ROUND(D32*F32,2) -> 0 | H32: =ROUND(G32*0.15,2) -> 0 | I32: 0
A33: 0583568 | B33: =B32+1 -> 19 | C33: 200g Five roses box of 100 | D33: 3600 | E33: box | G33: 0 | H33: 0 | I33: 0
A34: 0583627 | B34: 20 | C34: 200g Rooibos freshpack box of 80 | D34: 3600 | E34: box | G34: 0 | H34: 0 | I34: 0
A35: 0586010 | B35: 21 | C35: 100g English breakfast twinings | D35: 158 | E35: box | G35: =ROUND(D35*F35,2) -> 0 | H35: =ROUND(G35*0.15,2) -> 0 | I35: =ROUND(G35+H35,2) -> 0
A36: 0586009 | B36: 22 | C36: 100g Ealry grey twinings | D36: 4 | E36: box | G36: =ROUND(D36*F36,2) -> 0 | H36: =ROUND(G36*0.15,2) -> 0 | I36: =ROUND(G36+H36,2) -> 0
A37: 0586011 | B37: 23 | C37: 2g Jasmine green box of 25 | D37: 158 | E37: box | G37: =ROUND(D37*F37,2) -> 0 | H37: =ROUND(G37*0.15,2) -> 0 | I37: =ROUND(G37+H37,2) -> 0
C39: THE FOLLOWING SUPPLY AND DELIVERY OF BEVERAGES
C41: Milk
A42: 0183372 | B42: =B37+1 -> 24 | C42: 1L Low fat UHT processed milk (price per case of 6 x 1L) | D42: 8802 | E42: Case | G42: =ROUND(D42*F42,2) -> 0 | H42: Zero Rated | I42: =G42 -> 0
A43: 0214649 | B43: =B42+1 -> 25 | C43: 1L Full cream long life milk (price per case of 6 x 1L) | D43: 17604 | E43: Case | G43: 0 | H43: Zero Rated | I43: =G43 -> 0
C45: Water (Valpre or Equivalent)
A47: 0567355 | B47: =B43+1 -> 26 | C47: 500ml Sparkling (price per 24pack case) | D47: 3000 | E47: Case | G47: =ROUND(D47*F47,2) -> 0 | H47: =ROUND(G47*0.15,2) -> 0 | I47: =ROUND(G47+H47,2) -> 0
A48: 0567356 | B48: =B47+1 -> 27 | C48: 1L Natural still | D48: 1200 | E48: each | G48: 0 | H48: =ROUND(G48*0.15,2) -> 0 | I48: =ROUND(G48+H48,2) -> 0
A49: 0567354 | B49: =B48+1 -> 28 | C49: 1L Sparkling spring water | D49: 1200 | E49: each | G49: 0 | H49: 0 | I49: 0
A81: SUB TOTAL FOR WORKSHOP GROCERIES- CARRIED TO FINAL SUMMARY | G81: =SUM(G8:G80) -> 0 | H81: =SUM(H9:H80) -> 0 | I81: =SUM(I9:I80) -> 0

Sheet SUMMARY
D2: SUPLLY AND DELIVERY OF DRY GOODS AT ESKOM ACADEMY OF LEARNING (EAL) FOR A 3-YEAR PERIOD
B13: 1.1 | C13: FINALSUMMARY
C15: ITEM NO | D15: DESCRIPTION | E15: UOM | F15: QUANTITY | G15: RATE | H15: AMOUNT
C17: 1 | D17: Kitchen Groceries | E17: Sum | F17: 1 | G17: ='1.KITCHEN BOQ'!G660 -> R0.00 | H17: =ROUND(F17*G17,2) -> R0.00
C18: 2 | D18: Tuckshop Groceries | E18: Sum | F18: 1 | G18: ='2.TUCKSHOP BOQ'!G243 -> R0.00 | H18: =ROUND(F18*G18,2) -> R0.00
C19: 3 | D19: Workshop, Cost Centres, Conferences and Rooms | E19: Sum | F19: 1 | G19: ='3.WORKSHOP, CS, CONF & ROOM BOQ'!G81 -> R0.00 | H19: R0.00
C66: TOTAL AMOUNT EXCL VAT | H66: =SUM(H17:H65) -> R 0.00
C67: VAT @15% (Excluding Zero-Rated Items) | H67: ='1.KITCHEN BOQ'!H660+'2.TUCKSHOP BOQ'!H243+'3.WORKSHOP, CS, CONF & ROOM BOQ'!H81 -> R 0.00
C68: TOTAL AMOUNT INCL VAT | H68: =SUM(H66:H67) -> R 0.00
